bitfinex/quotes_BTCUSD_20240703
["timestamp","ask_amount","ask_price","bid_price","bid_amount"]
[1720034078727,1.83283165,60227.0,60226.0,0.01033]
[1720034078917,1.8338181,60227.0,60226.0,0.01033]
[1720034079914,1.8350181,60227.0,60226.0,0.01033]
[1720034081387,1.8338181,60227.0,60226.0,0.01033]
[1720034081585,1.8350181,60227.0,60226.0,0.01043]
[1720034082566,1.8351181,60227.0,60226.0,0.01043]
[1720034082969,1.8351181,60227.0,60226.0,0.01053]
[1720034084179,1.8352181,60227.0,60226.0,0.01053]
[1720034085294,1.800242,60227.0,60226.0,0.01053]
[1720034085538,1.83635098,60227.0,60226.0,0.01053]
[1720034085935,1.83515098,60227.0,60226.0,0.01053]
[1720034086346,1.83515098,60227.0,60226.0,0.17993]
[1720034086612,1.66961298,60227.0,60226.0,0.17993]
[1720034086806,1.31257498,60227.0,60226.0,0.17993]
[1720034088452,1.276466,60227.0,60226.0,0.17993]
[1720034088652,1.31325501,60227.0,60226.0,0.17993]
[1720034089083,1.31325501,60227.0,60226.0,0.35941]
[1720034089084,0.54905621,60227.0,60226.0,0.35941]
[1720034089291,0.512314,60227.0,60226.0,0.35941]
[1720034089873,0.506314,60227.0,60226.0,0.35841]
[1720034090286,0.506314,60227.0,60226.0,0.36041]
[1720034090492,0.606314,60227.0,60226.0,0.36041]
[1720034090694,0.598314,60227.0,60226.0,0.35941]
[1720034090867,0.0002,60227.0,60226.0,0.35941]
[1720034092887,0.166238,60227.0,60226.0,0.35941]
[1720034093443,0.498314,60227.0,60226.0,0.35941]
[1720034094625,0.166238,60227.0,60226.0,0.35941]
[1720034095434,0.0002,60227.0,60226.0,0.35941]
[1720034095637,0.166238,60227.0,60226.0,0.35941]
[1720034099328,0.498314,60227.0,60226.0,0.35941]
[1720034102266,0.83039,60227.0,60226.0,0.04691]
[1720034102485,0.498314,60227.0,60226.0,0.04691]
[1720034102700,0.0002,60227.0,60226.0,0.2072088]
[1720034102936,0.0002,60227.0,60226.0,0.3697088]
[1720034103079,0.0002,60227.0,60226.0,0.5657498]
[1720034103279,0.0002,60227.0,60226.0,1.0387318]
[1720034103598,0.0002,60227.0,60226.0,0.7066498]
[1720034104162,0.0002,60227.0,60226.0,0.5406088]
[1720034104465,0.0002,60227.0,60226.0,0.5386088]
[1720034104911,0.0012,60227.0,60226.0,0.5526088]
[1720034105314,0.0002,60227.0,60226.0,0.5386088]
[1720034105795,0.0012,60227.0,60226.0,0.5496088]
[1720034105997,0.0022,60227.0,60226.0,0.5636088]
[1720034106228,0.0012,60227.0,60226.0,0.5826088]
[1720034106441,0.0012,60227.0,60226.0,1.0777318]
[1720034106650,0.0022,60227.0,60226.0,0.7546498]
[1720034107250,0.0022,60227.0,60226.0,1.7508958]
[1720034107478,0.0022,60227.0,60226.0,1.4188138]
[1720034109983,0.0022,60227.0,60226.0,1.4218138]
[1720034110402,0.0022,60227.0,60226.0,1.7538958]
[1720034112195,0.0022,60227.0,60226.0,2.0537958]
[1720034112415,0.0022,60227.0,60226.0,2.3537958]
[1720034113966,0.0022,60227.0,60226.0,2.8858778]
[1720034114276,0.00091301,60249.0,60248.0,0.20598]
[1720034114437,0.00091301,60249.0,60248.0,0.3892788]
[1720034114634,0.00091301,60249.0,60248.0,0.3891788]
[1720034114861,0.00091301,60249.0,60248.0,0.3890788]
[1720034115267,0.10091301,60249.0,60248.0,0.3889788]
[1720034116114,0.10491301,60249.0,60248.0,0.3909788]
[1720034116334,0.10491301,60249.0,60248.0,0.3899788]
[1720034116541,0.10491301,60249.0,60248.0,0.3889788]
[1720034116744,0.10491301,60249.0,60248.0,0.3909788]
[1720034116919,0.10491301,60249.0,60248.0,0.3949788]
[1720034118502,0.10491301,60249.0,60248.0,0.3948788]
[1720034118867,0.10491301,60249.0,60248.0,0.3947788]
[1720034119308,0.27089001,60249.0,60248.0,0.006]
[1720034119506,1.59265501,60249.0,60248.0,0.006]
[1720034120910,1.59265501,60249.0,60248.0,0.002]
[1720034121128,0.497965,60245.0,60244.0,0.03598]
[1720034125689,0.497965,60245.0,60244.0,0.04888]
[1720034131213,0.165984,60247.0,60244.0,0.2091788]
[1720034131512,0.10091301,60249.0,60248.0,0.33938]
[1720034131822,0.00091301,60249.0,60248.0,1.0505198]
[1720034131955,0.00091301,60249.0,60248.0,1.3824808]
[1720034132752,0.00091301,60249.0,60248.0,1.3834808]
[1720034133087,0.00091301,60249.0,60248.0,1.3824808]
[1720034133269,0.00091301,60249.0,60248.0,1.3964808]
[1720034133694,0.00091301,60249.0,60248.0,1.3664808]
[1720034134691,0.00091301,60249.0,60248.0,1.3524808]
[1720034134891,0.00091301,60249.0,60248.0,0.5365788]
[1720034135167,0.00091301,60249.0,60248.0,0.7465588]
[1720034135370,0.00091301,60249.0,60248.0,1.0785198]
[1720034135644,0.00091301,60249.0,60248.0,1.0784198]
[1720034135932,0.00091301,60249.0,60248.0,1.0783198]
[1720034136757,0.00091301,60249.0,60248.0,0.7463588]
[1720034137226,0.00091301,60249.0,60248.0,1.0783198]
[1720034138616,0.00091301,60249.0,60248.0,1.0482198]
[1720034139424,0.00091301,60249.0,60248.0,0.7162588]
[1720034139628,0.00091301,60249.0,60248.0,0.5502788]
[1720034139828,1.16275501,60249.0,60248.0,0.051]
[1720034140038,1.47825501,60249.0,60248.0,0.028]
[1720034140236,1.47985501,60249.0,60248.0,0.028]
[1720034140479,1.93319658,60249.0,60248.0,0.028]
[1720034140850,1.93319658,60249.0,60248.0,0.014]
[1720034141277,1.93319658,60249.0,60248.0,0.023]
[1720034141895,3.18581344,60249.0,60248.0,0.023]
[1720034142069,2.88581344,60249.0,60248.0,0.009]
[1720034142358,1.806496,60245.0,60244.0,0.0002]
[1720034142572,2.097496,60245.0,60244.0,0.0002]
[1720034142798,0.0016,60235.0,60231.0,0.7769]
[1720034142919,0.191,60232.0,60226.0,0.04351]
[1720034143115,0.689114,60227.0,60226.0,0.04351]
[1720034148771,0.266016,60235.0,60234.0,0.2184788]
[1720034148914,0.266016,60235.0,60234.0,0.2204788]
[1720034148915,0.267016,60235.0,60234.0,0.2204788]
[1720034149844,0.266916,60235.0,60234.0,0.2194788]
[1720034150148,0.265916,60235.0,60234.0,0.2184788]
[1720034150385,0.265916,60235.0,60234.0,0.2214788]
[1720034150585,0.265916,60235.0,60234.0,0.1862988]
[1720034150756,0.265916,60235.0,60234.0,0.2214788]
[1720034150956,0.265916,60235.0,60234.0,0.1862988]
[1720034151197,0.265916,60235.0,60234.0,0.2264788]
[1720034152319,0.92998,60235.0,60234.0,0.06618]
[1720034152612,0.92998,60235.0,60234.0,0.04318]
[1720034153163,0.92998,60235.0,60234.0,0.005]
[1720034153933,1.557712,60235.0,60234.0,0.005]
[1720034154101,0.830107,60233.0,60232.0,0.03518]
[1720034154283,1.16215,60233.0,60232.0,0.03518]
[1720034155189,0.03,60225.0,60219.0,0.39940076]
[1720034155377,0.332093,60224.0,60220.0,0.1832988]
[1720034155584,0.16605,60223.0,60220.0,0.1832988]
[1720034155781,0.166052,60222.0,60220.0,0.1832988]
[1720034156669,0.166049,60224.0,60220.0,0.1832988]
[1720034157173,0.166044,60225.0,60222.0,0.03]
[1720034157383,0.166041,60226.0,60223.0,0.1832988]
[1720034158944,0.362046,60233.0,60223.0,0.1832988]
[1720034159142,0.166031,60230.0,60223.0,0.3493478]
[1720034159698,0.166031,60230.0,60224.0,0.03]
[1720034160015,0.166033,60229.0,60225.0,0.1832988]
[1720034160223,0.165933,60229.0,60226.0,0.023]
[1720034160428,0.196035,60228.0,60227.0,0.1602988]
[1720034160727,0.498106,60228.0,60227.0,0.1602988]
[1720034160946,0.1,60232.0,60227.0,0.1602988]
[1720034161151,0.16603,60230.0,60228.0,0.023]
[1720034161282,0.16603,60230.0,60229.0,0.1602988]
[1720034161495,0.16603,60230.0,60229.0,0.1832988]
[1720034162520,0.16593,60230.0,60229.0,0.1832988]
[1720034163055,0.16593,60230.0,60229.0,0.1932988]
[1720034163688,0.16593,60230.0,60229.0,0.2012988]
[1720034163902,0.16593,60230.0,60229.0,0.1932988]
[1720034164331,0.19583,60230.0,60229.0,0.1932988]
[1720034164729,0.52789,60230.0,60229.0,0.2012988]
[1720034164940,0.49799,60230.0,60229.0,0.2012988]
[1720034171963,0.498188,60206.0,60205.0,0.2076288]
[1720034172369,0.498188,60206.0,60205.0,0.02433]
[1720034172370,1.770372,60206.0,60205.0,0.02433]
[1720034172570,2.102564,60206.0,60205.0,0.02433]
[1720034172770,1.579372,60206.0,60205.0,0.02266304]
[1720034173007,1.770372,60206.0,60205.0,0.02266304]
[1720034174311,2.132564,60206.0,60205.0,0.02266304]
[1720034174784,2.162564,60206.0,60205.0,0.02266304]
[1720034174986,2.132564,60206.0,60205.0,0.02266304]
[1720034175135,1.941564,60206.0,60205.0,0.02266304]
[1720034175361,2.132564,60206.0,60205.0,0.01366304]
[1720034175566,2.132464,60206.0,60205.0,0.01366304]
[1720034175741,2.133464,60206.0,60205.0,0.01466304]
[1720034176084,2.133364,60206.0,60205.0,0.01466304]
[1720034176294,2.163264,60206.0,60205.0,0.00766304]
[1720034176501,3.11611786,60206.0,60205.0,0.00766304]
[1720034176678,2.7667548,60206.0,60205.0,0.00866304]
[1720034176878,2.79822499,60206.0,60205.0,0.00766304]
[1720034177225,2.7687548,60206.0,60205.0,0.00866304]
[1720034177425,3.0667548,60206.0,60205.0,0.00766304]
[1720034177643,3.0657548,60206.0,60205.0,0.00666304]
[1720034177861,3.0677548,60206.0,60205.0,0.00766304]
[1720034178048,3.0707548,60206.0,60205.0,0.00866304]
[1720034178447,3.0677548,60206.0,60205.0,0.00766304]
[1720034179002,3.0707548,60206.0,60205.0,0.00866304]
[1720034179323,3.23111786,60206.0,60205.0,0.00866304]
[1720034179526,3.23101786,60206.0,60205.0,0.00866304]
[1720034179984,3.22701786,60206.0,60205.0,0.00766304]
[1720034180377,3.22701786,60206.0,60205.0,0.00866304]
[1720034180378,3.22901786,60206.0,60205.0,0.00866304]
[1720034180557,2.7686548,60206.0,60205.0,0.00866304]
[1720034180824,2.4364628,60206.0,60205.0,0.00866304]
[1720034181023,2.6274628,60206.0,60205.0,0.00866304]
[1720034181794,2.107164,60206.0,60205.0,0.00866304]
[1720034182075,2.137164,60206.0,60205.0,0.00866304]
[1720034182449,1.976164,60206.0,60205.0,0.00866304]
[1720034182616,1.294972,60206.0,60205.0,0.00766304]
[1720034183016,1.296972,60206.0,60205.0,0.00866304]
[1720034183236,1.294972,60206.0,60205.0,0.00766304]
[1720034183639,1.294972,60206.0,60205.0,0.00866304]
[1720034183640,1.296972,60206.0,60205.0,0.00866304]
[1720034183839,1.293972,60206.0,60205.0,0.00666304]
[1720034184039,1.293972,60206.0,60205.0,0.00766304]
[1720034184040,1.295972,60206.0,60205.0,0.00766304]
[1720034184244,1.297972,60206.0,60205.0,0.00766304]
[1720034184663,1.295972,60206.0,60205.0,0.00666304]
[1720034185015,0.96578,60206.0,60205.0,0.00666304]
[1720034185793,0.96388,60206.0,60205.0,0.00666304]
[1720034186028,0.95988,60206.0,60205.0,0.00666304]
[1720034186160,0.95978,60206.0,60205.0,0.00666304]
[1720034186518,0.96178,60206.0,60205.0,0.00666304]
[1720034186760,0.96168,60206.0,60205.0,0.00666304]
[1720034187310,0.96268,60206.0,60205.0,0.00666304]
[1720034189941,0.96278,60206.0,60205.0,0.00666304]
[1720034190157,1.294972,60206.0,60205.0,0.00666304]
[1720034190356,1.294972,60206.0,60205.0,0.00676304]
[1720034190757,1.324972,60206.0,60205.0,0.00676304]
[1720034191072,2.46526,60206.0,60205.0,0.00676304]
[1720034191282,2.46526,60206.0,60201.0,0.00834]
[1720034191283,1.552649,60202.0,60201.0,0.00834]
[1720034191484,2.31781077,60202.0,60201.0,0.00834]
[1720034191684,2.65002477,60202.0,60201.0,0.00834]
[1720034192938,3.44260183,60202.0,60201.0,0.00834]
[1720034193164,3.44260183,60202.0,60173.0,0.00834]
[1720034193165,0.1397,60196.0,60173.0,0.00834]
[1720034193366,1.41073,60188.0,60173.0,0.00834]
[1720034193575,1.42099297,60188.0,60173.0,0.00834]
[1720034193775,2.23704199,60188.0,60173.0,0.00834]
[1720034194000,2.18547697,60188.0,60173.0,0.00834]
[1720034194203,2.34577577,60188.0,60173.0,0.00834]
[1720034194544,2.97806777,60188.0,60173.0,0.00834]
[1720034194719,3.04418551,60188.0,60187.0,0.00934]
[1720034194922,3.04318551,60188.0,60187.0,0.00934]
[1720034195124,2.71089351,60188.0,60187.0,0.00934]
[1720034195371,2.71389351,60188.0,60187.0,0.00934]
[1720034195527,2.71389351,60188.0,60187.0,0.00834]
[1720034196749,2.72489351,60188.0,60187.0,0.00934]
[1720034196907,2.72989351,60188.0,60187.0,0.01034]
[1720034197109,2.72289351,60188.0,60187.0,0.00934]
[1720034197394,3.02289351,60188.0,60187.0,0.00934]
[1720034197512,2.72789351,60188.0,60187.0,0.01034]
[1720034197713,3.02789351,60188.0,60187.0,0.01034]
[1720034197967,2.48589351,60188.0,60187.0,0.00834]
[1720034198196,2.48589351,60188.0,60187.0,0.01034]
[1720034198197,2.72589351,60188.0,60187.0,0.01034]
[1720034198328,2.75985211,60188.0,60187.0,0.01034]
[1720034198530,3.05985211,60188.0,60187.0,0.00934]
[1720034198738,3.22521517,60188.0,60187.0,0.01034]
[1720034198941,3.22521517,60188.0,60173.0,0.00834]
[1720034198942,0.556065,60181.0,60173.0,0.00834]
[1720034199165,2.89631611,60181.0,60173.0,0.00834]
[1720034199368,3.86878117,60181.0,60173.0,0.00834]
[1720034199524,4.06878117,60181.0,60173.0,0.00834]
[1720034199726,0.920822,60174.0,60173.0,0.00834]
[1720034199954,2.21759308,60174.0,60173.0,0.00834]
[1720034200157,1.89560105,60174.0,60173.0,0.00834]
[1720034200362,1.82522408,60174.0,60173.0,0.00834]
[1720034200609,1.85522408,60174.0,60173.0,0.00834]
[1720034200834,1.51812408,60174.0,60173.0,0.00834]
[1720034201038,1.51812408,60174.0,60173.0,0.00934]
[1720034201039,0.1871956,60174.0,60173.0,0.00934]
[1720034201258,0.462264,60175.0,60173.0,0.14864]
[1720034201463,0.498553,60174.0,60173.0,0.14864]
[1720034201694,0.498553,60174.0,60173.0,0.14664]
[1720034201695,0.16436794,60174.0,60173.0,0.14664]
[1720034201976,0.33055097,60174.0,60173.0,0.30944]
[1720034202612,0.16426697,60174.0,60173.0,0.30944]
[1720034202758,0.16426697,60174.0,60173.0,0.00834]
[1720034202759,0.59271997,60174.0,60173.0,0.00834]
[1720034202960,1.00008897,60174.0,60173.0,0.00834]
[1720034203525,1.00608897,60174.0,60173.0,0.00934]
[1720034203708,1.03098897,60174.0,60173.0,0.00934]
[1720034203909,1.01918897,60174.0,60173.0,0.00834]
[1720034204112,1.02418897,60174.0,60173.0,0.01134]
[1720034204534,1.01225935,60174.0,60173.0,0.00834]
[1720034204910,1.34562825,60174.0,60173.0,0.00834]
[1720034205088,1.34562825,60174.0,60173.0,0.01034]
[1720034207030,1.34562825,60174.0,60173.0,0.00834]
[1720034207767,1.37451035,60174.0,60173.0,0.00834]
[1720034207922,1.37551035,60174.0,60173.0,0.01034]
[1720034208334,1.40451035,60174.0,60173.0,0.01034]
[1720034208516,1.37451035,60174.0,60173.0,0.01034]
[1720034208720,3.34472221,60174.0,60173.0,0.01034]
[1720034209104,2.95117427,60174.0,60173.0,0.01134]
[1720034209217,3.36174127,60174.0,60173.0,0.01134]
[1720034209615,3.36174127,60174.0,60173.0,0.00934]
[1720034210089,3.35674127,60174.0,60173.0,0.00834]
[1720034210315,3.65674127,60174.0,60173.0,0.00834]
[1720034210565,3.35774127,60174.0,60173.0,0.00834]
[1720034210807,3.27685616,60174.0,60173.0,0.00834]
[1720034211034,3.28185616,60174.0,60173.0,0.00834]
[1720034211226,3.28785616,60174.0,60173.0,0.00934]
[1720034211426,2.6679271,60174.0,60173.0,0.00834]
[1720034212097,1.55475599,60174.0,60173.0,0.00934]
[1720034212322,1.37239062,60174.0,60173.0,0.00934]
[1720034212706,1.36739062,60174.0,60173.0,0.00934]
[1720034212917,1.36729062,60174.0,60173.0,0.00934]
[1720034213275,1.37319062,60174.0,60173.0,0.00934]
[1720034213673,1.31362563,60174.0,60173.0,0.01034]
[1720034213935,1.3581036,60174.0,60173.0,0.00934]
[1720034214136,1.3581036,60174.0,60173.0,0.00834]
[1720034214345,1.32662563,60174.0,60173.0,0.00934]
[1720034214513,1.37660139,60174.0,60173.0,0.01034]
[1720034214926,0.58206339,60174.0,60173.0,0.01034]
[1720034215124,0.0381,60174.0,60173.0,0.17264]
[1720034215482,0.536653,60174.0,60173.0,0.17264]
[1720034216213,0.524753,60174.0,60173.0,0.17164]
[1720034216454,0.628653,60174.0,60173.0,0.17064]
[1720034216633,1.304391,60174.0,60173.0,0.00944]
[1720034216832,1.307391,60174.0,60173.0,0.00954]
[1720034217038,1.296391,60174.0,60173.0,0.00854]
[1720034217244,1.33214222,60174.0,60173.0,0.01254]
[1720034217451,1.33314222,60174.0,60173.0,0.01854]
[1720034217659,1.33014222,60174.0,60173.0,0.01454]
[1720034217965,1.36214222,60174.0,60173.0,0.00854]
[1720034218169,1.35914222,60174.0,60173.0,0.00854]
[1720034218438,0.1333,60173.0,60162.0,0.00835]
[1720034218596,0.360431,60157.0,60156.0,0.0001]
[1720034218797,1.19360822,60157.0,60156.0,0.0001]
[1720034218955,1.70478246,60157.0,60156.0,0.0001]
[1720034219157,1.67904005,60157.0,60156.0,0.0001]
[1720034219385,1.38224005,60157.0,60156.0,0.0001]
[1720034219626,0.99651453,60157.0,60156.0,0.0001]
[1720034219945,0.99651453,60157.0,60156.0,0.4579988]
[1720034219946,0.1416426,60157.0,60156.0,0.4579988]
[1720034220141,0.0299,60167.0,60156.0,0.4579988]
[1720034220365,0.166228,60158.0,60157.0,0.1602988]
[1720034220479,0.166228,60159.0,60157.0,0.1602988]
[1720034220684,0.498685,60158.0,60157.0,0.1602988]
[1720034220903,0.5413991,60158.0,60157.0,0.1832988]
[1720034221108,0.8738561,60158.0,60157.0,0.023]
[1720034221305,0.498694,60157.0,60156.0,0.2977]
[1720034221508,1.0037211,60157.0,60156.0,0.0011]
[1720034221707,1.0037211,60157.0,60156.0,0.1613988]
[1720034221708,0.1427141,60157.0,60156.0,0.1613988]
[1720034221909,0.1427141,60157.0,60156.0,0.1843988]
[1720034222143,0.14367009,60157.0,60156.0,0.2143988]
[1720034222304,0.14367009,60157.0,60156.0,0.1843988]
[1720034222305,0.30990109,60157.0,60156.0,0.1843988]
[1720034222507,0.30990109,60157.0,60156.0,0.2143988]
[1720034222711,0.14367009,60157.0,60156.0,0.2133988]
[1720034222910,0.04367009,60157.0,60156.0,0.6772328]
[1720034223228,0.266209,60165.0,60160.0,0.03]
[1720034223440,0.31088993,60164.0,60161.0,0.1832988]
[1720034223649,0.31088993,60164.0,60162.0,0.03]
[1720034223650,0.04467793,60163.0,60162.0,0.03]
[1720034223809,0.04467793,60163.0,60162.0,0.1832988]
[1720034224191,0.362288,60171.0,60162.0,0.1832988]
[1720034224192,0.0032,60172.0,60168.0,0.03]
[1720034224309,0.0032,60172.0,60169.0,0.1832988]
[1720034224310,0.2112336,60171.0,60169.0,0.1832988]
[1720034224504,0.0450396,60170.0,60169.0,0.1832988]
[1720034224709,0.0450396,60170.0,60164.0,0.1646]
[1720034224710,0.332398,60169.0,60164.0,0.1646]
[1720034224976,0.332392,60170.0,60165.0,0.1832988]
[1720034225175,0.166201,60168.0,60165.0,0.1832988]
[1720034225558,0.0031,60172.0,60168.0,0.03]
[1720034225760,0.03918666,60171.0,60169.0,0.1832988]
[1720034226002,0.20537966,60171.0,60169.0,0.1832988]
[1720034226168,0.03918666,60170.0,60169.0,0.1832988]
[1720034226372,0.03918666,60171.0,60169.0,0.1832988]
[1720034226581,0.03918666,60170.0,60169.0,0.2132988]
[1720034226780,0.0031,60172.0,60171.0,0.03]
[1720034226984,0.04387322,60172.0,60171.0,0.2132988]
[1720034227452,0.04387322,60172.0,60171.0,0.023]
[1720034227661,0.04387322,60172.0,60164.0,0.1646]
[1720034227662,0.498628,60165.0,60164.0,0.1646]
[1720034227877,0.87182022,60165.0,60164.0,0.1646]
[1720034228010,0.87182022,60165.0,60164.0,0.1876]
[1720034228011,0.64078041,60165.0,60164.0,0.1876]
[1720034228217,0.97319941,60165.0,60164.0,0.1876]
[1720034228441,0.64078041,60165.0,60164.0,0.1876]
[1720034228686,1.00078496,60165.0,60164.0,0.1646]
[1720034229089,1.00078496,60165.0,60163.0,0.133]
[1720034229090,0.498636,60164.0,60163.0,0.133]
[1720034229235,0.53847396,60164.0,60163.0,0.133]
[1720034229437,0.87089796,60164.0,60163.0,0.133]
[1720034229699,0.498669,60160.0,60159.0,0.1722]
[1720034229902,0.53850696,60160.0,60159.0,0.3554988]
[1720034230763,0.03983796,60160.0,60159.0,0.3854988]
[1720034231093,0.001,60164.0,60163.0,0.03]
[1720034231308,0.001,60164.0,60163.0,0.3190988]
[1720034231486,0.0031,60172.0,60167.0,0.03]
[1720034231658,0.16929,60172.0,60171.0,0.0001]
[1720034231861,0.3086626,60172.0,60171.0,0.1603988]
[1720034232068,0.3086626,60172.0,60171.0,0.1794]
[1720034232230,1.3357026,60172.0,60171.0,0.0001]
[1720034232435,1.40916548,60172.0,60171.0,0.0001]
[1720034232656,1.3058026,60172.0,60171.0,0.0001]
[1720034232856,1.37926497,60172.0,60171.0,0.0001]
[1720034233057,1.3058026,60172.0,60171.0,0.0001]
[1720034233259,1.37711224,60172.0,60171.0,0.0001]
[1720034233435,1.3058026,60172.0,60171.0,0.0001]
[1720034233649,1.37711396,60172.0,60171.0,0.0001]
[1720034233853,0.9734226,60172.0,60171.0,0.0001]
[1720034234058,0.94005,60172.0,60171.0,0.0011]
[1720034234263,0.64169747,60172.0,60171.0,0.0011]
[1720034234463,0.63559747,60172.0,60171.0,0.0001]
[1720034234686,0.64159747,60172.0,60171.0,0.0011]
[1720034234900,0.64559747,60172.0,60171.0,0.0012]
[1720034235136,0.04702747,60172.0,60171.0,0.1914988]
[1720034235328,0.04702747,60172.0,60171.0,0.5171918]
[1720034235529,0.04702747,60172.0,60171.0,0.5240988]
[1720034235913,0.04702747,60172.0,60171.0,0.8239988]
[1720034236081,0.04702747,60172.0,60171.0,0.5240988]
[1720034236701,0.013,60172.0,60171.0,0.5240988]
[1720034236912,0.007,60172.0,60171.0,0.5230988]
[1720034237107,0.007,60172.0,60171.0,1.3215778]
[1720034237400,0.013,60172.0,60171.0,2.3449638]
[1720034237558,0.013,60172.0,60171.0,2.6773498]
[1720034237979,0.003,60172.0,60171.0,2.0449638]
[1720034238182,0.003,60172.0,60171.0,1.5215778]
[1720034238381,0.50257,60172.0,60171.0,0.1694988]
[1720034238634,0.50257,60172.0,60171.0,0.0102]
[1720034238635,0.22605765,60172.0,60171.0,0.0102]
[1720034239021,0.58833765,60172.0,60171.0,0.0142]
[1720034239229,0.58833765,60172.0,60171.0,0.0282]
[1720034239230,0.92071765,60172.0,60171.0,0.0282]
[1720034239450,1.02171765,60172.0,60171.0,0.0282]
[1720034239676,1.08840348,60172.0,60171.0,0.0282]
[1720034239914,1.42078335,60172.0,60171.0,0.0282]
[1720034240114,1.42078335,60172.0,60171.0,0.0142]
[1720034240312,1.41978335,60172.0,60171.0,0.0142]
[1720034240551,1.08740335,60172.0,60171.0,0.0092]
[1720034240784,1.08740335,60172.0,60171.0,0.0002]
[1720034240785,1.08570873,60172.0,60171.0,0.0002]
[1720034240954,1.01945796,60172.0,60171.0,0.0002]
[1720034241156,1.02545796,60172.0,60171.0,0.0012]
[1720034241364,1.02445796,60172.0,60171.0,0.0002]
[1720034241561,0.99455796,60172.0,60171.0,0.0012]
[1720034241750,1.00455796,60172.0,60171.0,0.0012]
[1720034242086,0.99455796,60172.0,60171.0,0.0002]
[1720034242282,1.00055796,60172.0,60171.0,0.0002]
[1720034242521,1.00455796,60172.0,60171.0,0.0002]
[1720034243263,0.67430835,60172.0,60171.0,0.1604988]
[1720034243467,1.03658835,60172.0,60171.0,0.0232]
[1720034243720,1.66156835,60172.0,60171.0,0.0002]
[1720034243920,1.32918835,60172.0,60171.0,0.0002]
[1720034244119,1.66156835,60172.0,60171.0,0.0002]
[1720034244280,1.73084764,60172.0,60171.0,0.0002]
[1720034245431,1.66156835,60172.0,60171.0,0.0002]
[1720034245840,1.03658835,60172.0,60171.0,0.0002]
[1720034246202,1.36896835,60172.0,60171.0,0.0002]
[1720034246417,1.35696835,60172.0,60171.0,0.0002]
[1720034246626,1.32523061,60172.0,60171.0,0.0002]
[1720034246826,1.32123061,60172.0,60171.0,0.0002]
[1720034247034,1.32723061,60172.0,60171.0,0.0002]
[1720034247601,1.36123061,60172.0,60171.0,0.0002]
[1720034247778,1.35123061,60172.0,60171.0,0.0002]
[1720034247973,1.71361061,60172.0,60171.0,0.0002]
[1720034248216,1.36123061,60172.0,60171.0,0.0002]
[1720034248414,3.33677141,60172.0,60171.0,0.0002]
[1720034248614,3.63677141,60172.0,60171.0,0.0002]
[1720034248734,3.33677141,60172.0,60171.0,0.0002]
[1720034248959,3.08074741,60172.0,60171.0,0.0002]
[1720034249726,2.55818085,60172.0,60171.0,0.0002]
[1720034250035,2.51428941,60172.0,60171.0,0.0012]
[1720034250175,2.50228941,60172.0,60171.0,0.0002]
[1720034250375,3.27365247,60172.0,60171.0,0.0012]
[1720034250603,4.68992241,60172.0,60171.0,0.0022]
[1720034250776,4.40943385,60172.0,60171.0,0.0012]
[1720034250987,4.57373385,60172.0,60171.0,0.0002]
[1720034251212,4.75709691,60172.0,60171.0,0.0022]
[1720034251406,5.07747691,60172.0,60171.0,0.0012]
[1720034251612,5.77747691,60172.0,60171.0,0.0002]
[1720034251964,5.76647691,60172.0,60171.0,0.0012]
[1720034252113,1.881983,60157.0,60156.0,0.0001]
[1720034252279,2.505446,60157.0,60156.0,0.0001]
[1720034252895,2.142983,60157.0,60156.0,0.0001]
[1720034253318,2.186983,60157.0,60156.0,0.0011]
[1720034253497,2.126983,60157.0,60156.0,0.0011]
[1720034253698,2.126983,60157.0,60156.0,0.0001]
[1720034253913,2.126983,60157.0,60156.0,0.0011]
[1720034254131,1.70587444,60157.0,60156.0,0.0011]
[1720034254500,1.639983,60157.0,60156.0,0.0001]
[1720034254913,1.650983,60157.0,60156.0,0.0011]
[1720034255250,1.653983,60157.0,60156.0,0.0011]
[1720034255749,1.664983,60157.0,60156.0,0.0021]
[1720034256334,1.636983,60157.0,60156.0,0.0011]
[1720034256793,1.869983,60157.0,60156.0,0.0021]
[1720034257016,1.869983,60157.0,60156.0,0.0011]
[1720034257017,1.888983,60157.0,60156.0,0.0011]
[1720034257314,2.8899993,60157.0,60156.0,0.0001]
[1720034257512,2.74563624,60157.0,60156.0,0.0021]
[1720034257658,2.72463624,60157.0,60156.0,0.0011]
[1720034257865,2.71763624,60157.0,60156.0,0.0001]
[1720034258057,2.74063624,60157.0,60156.0,0.0021]
[1720034258554,2.71763624,60157.0,60156.0,0.0001]
[1720034258754,2.16487444,60157.0,60156.0,0.0001]
[1720034260248,2.149983,60157.0,60156.0,0.0011]
[1720034260461,1.835983,60157.0,60156.0,0.0021]
[1720034260664,1.31252,60157.0,60156.0,0.0011]
[1720034260862,1.30552,60157.0,60156.0,0.0001]
[1720034261001,1.30552,60157.0,60156.0,0.0021]
[1720034261002,1.31752,60157.0,60156.0,0.0021]
[1720034261210,1.32852,60157.0,60156.0,0.0021]
[1720034261847,1.31752,60157.0,60156.0,0.0011]
[1720034262178,1.32452,60157.0,60156.0,0.0021]
[1720034262587,1.32452,60157.0,60156.0,0.1383]
[1720034262588,0.855157,60157.0,60156.0,0.1383]
[1720034262813,0.332407,60168.0,60156.0,0.1383]
[1720034262814,0.0299,60166.0,60157.0,0.1771]
[1720034263028,0.332434,60163.0,60158.0,0.1832988]
[1720034263230,0.498678,60159.0,60158.0,0.023]
[1720034263410,0.53287003,60159.0,60158.0,0.023]
[1720034263742,1.19777403,60159.0,60158.0,0.023]
[1720034264166,1.22767403,60159.0,60158.0,0.023]
[1720034264348,1.20177403,60159.0,60158.0,0.023]
[1720034264682,0.16809203,60159.0,60156.0,0.0001]
[1720034264965,1.19352,60157.0,60156.0,0.0001]
[1720034265163,1.22561914,60157.0,60156.0,0.0001]
[1720034265388,1.32561914,60157.0,60156.0,0.0001]
[1720034266565,1.29571914,60157.0,60156.0,0.0001]
[1720034266764,1.32571914,60157.0,60156.0,0.0001]
[1720034267533,1.32671914,60157.0,60156.0,0.0001]
[1720034267734,1.65918214,60157.0,60156.0,0.0001]
[1720034267932,1.597183,60157.0,60156.0,0.0001]